[Event "FIDE World Rapid Chess Championship 2021"]
[White "Anton Guijarro, David"]
[Black "Niemann, Hans Moke"]
[WhiteFideId "2285525"]
[BlackFideId "2093596"]
[WhiteElo "2627"]
[BlackElo "2327"]
[Result "1/2-1/2"]
[Round "02"]
[TimeControl "900+10"]
[Date "2021.12.26"]
[WhiteClock "0:00:34"]
[BlackClock "0:11:21"]

1. Nf3 {[%clk 0:15:17]}  Nf6 {[%clk 0:15:03]} 2. c4 {[%clk 0:15:19]}  c6 {[%clk 0:15:07]} 3. d4 {[%clk 0:15:06]}  d5 {[%clk 0:15:13]} 4. e3 {[%clk 0:15:13]}  Bg4 {[%clk 0:15:03]} 5. h3 {[%clk 0:14:46]}  Bh5 {[%clk 0:15:10]} 6. Nc3 {[%clk 0:14:26]}  e6 {[%clk 0:15:18]} 7. g4 {[%clk 0:14:33]}  Bg6 {[%clk 0:15:23]} 8. Ne5 {[%clk 0:14:37]}  Nbd7 {[%clk 0:15:31]} 9. Nxg6 {[%clk 0:14:39]}  hxg6 {[%clk 0:15:38]} 10. g5 {[%clk 0:14:33]}  Ne4 {[%clk 0:15:30]} 11. Nxe4 {[%clk 0:14:34]}  dxe4 {[%clk 0:15:38]} 12. h4 {[%clk 0:14:37]}  Qa5+ {[%clk 0:15:41]} 13. Bd2 {[%clk 0:14:37]}  Bb4 {[%clk 0:15:49]} 14. a3 {[%clk 0:14:26]}  Bxd2+ {[%clk 0:15:57]} 15. Qxd2 {[%clk 0:14:35]}  Qxd2+ {[%clk 0:16:05]} 16. Kxd2 {[%clk 0:14:43]}  f5 {[%clk 0:16:14]} 17. c5 {[%clk 0:14:37]}  Ke7 {[%clk 0:16:15]} 18. b4 {[%clk 0:13:17]}  a6 {[%clk 0:16:18]} 19. Bc4 {[%clk 0:12:42]}  b5 {[%clk 0:16:00]} 20. Be2 {[%clk 0:11:44]}  e5 {[%clk 0:15:49]} 21. a4 {[%clk 0:11:45]}  exd4 {[%clk 0:15:39]} 22. exd4 {[%clk 0:11:52]}  Rhd8 {[%clk 0:15:46]} 23. Kc3 {[%clk 0:10:28]}  Nf8 {[%clk 0:15:51]} 24. axb5 {[%clk 0:10:04]}  axb5 {[%clk 0:15:58]} 25. d5 {[%clk 0:10:02]}  cxd5 {[%clk 0:16:02]} 26. Bxb5 {[%clk 0:10:06]}  d4+ {[%clk 0:15:56]} 27. Kc4 {[%clk 0:07:59]}  d3 {[%clk 0:16:03]} 28. Kc3 {[%clk 0:07:59]}  Ne6 {[%clk 0:16:00]} 29. Bc4 {[%clk 0:05:34]}  Kd7 {[%clk 0:10:23]} 30. c6+ {[%clk 0:04:24]}  Kd6 {[%clk 0:10:23]} 31. Bxe6 {[%clk 0:04:21]}  Kxe6 {[%clk 0:10:30]} 32. b5 {[%clk 0:04:25]}  Rab8 {[%clk 0:10:23]} 33. c7 {[%clk 0:04:25]}  Rdc8 {[%clk 0:10:30]} 34. Ra6+ {[%clk 0:04:25]}  Ke5 {[%clk 0:10:32]} 35. b6 {[%clk 0:04:25]}  Rxb6 {[%clk 0:10:30]} 36. Rxb6 {[%clk 0:04:25]}  Rxc7+ {[%clk 0:10:30]} 37. Kb3 {[%clk 0:02:40]}  Kf4 {[%clk 0:10:59]} 38. Rxg6 {[%clk 0:02:21]}  Kf3 {[%clk 0:11:08]} 39. h5 {[%clk 0:02:03]}  Kg2 {[%clk 0:11:13]} 40. Rh4 {[%clk 0:02:40]}  Rd7 {[%clk 0:10:59]} 41. Ra6 {[%clk 0:02:40]}  d2 {[%clk 0:09:37]} 42. Ra1 {[%clk 0:00:42]}  d1=Q+ {[%clk 0:11:21]} 43. Rxd1 {[%clk 0:00:34]}  Rxd1 {[%clk 0:11:21]} 44. h6 {[%clk 0:00:34]}  gxh6 {[%clk 0:11:21]} 45. gxh6 {[%clk 0:00:34]}  Rd8 {[%clk 0:10:02]} 46. Rf4 {[%clk 0:01:05]}  Rh8 {[%clk 0:11:21]} 47. Rxf5 {[%clk 0:00:34]}  Rxh6 {[%clk 0:11:21]} 48. Rf4 {[%clk 0:00:34]} 1/2-1/2


[Site "http://www.Chess.com"]

[Event "FIDE World Rapid Chess Championship 2021"]
[White "Jakubowski, Krzysztof"]
[Black "Cheparinov, Ivan"]
[WhiteFideId "1112848"]
[BlackFideId "2905540"]
[WhiteElo "2399"]
[BlackElo "2621"]
[Result "1/2-1/2"]
[Round "02"]
[TimeControl "900+10"]
[Date "2021.12.26"]
[WhiteClock "0:02:14"]
[BlackClock "0:03:57"]

1. e4 {[%clk 0:15:17]}  e5 {[%clk 0:15:18]} 2. Nf3 {[%clk 0:15:22]}  Nc6 {[%clk 0:15:26]} 3. Bc4 {[%clk 0:15:26]}  Nf6 {[%clk 0:15:33]} 4. d3 {[%clk 0:15:02]}  Bc5 {[%clk 0:15:40]} 5. c3 {[%clk 0:15:04]}  d6 {[%clk 0:15:48]} 6. O-O {[%clk 0:15:02]}  O-O {[%clk 0:15:54]} 7. a4 {[%clk 0:14:49]}  a5 {[%clk 0:15:50]} 8. Na3 {[%clk 0:14:05]}  h6 {[%clk 0:15:31]} 9. h3 {[%clk 0:13:59]}  Ne7 {[%clk 0:15:12]} 10. Nc2 {[%clk 0:13:46]}  Ng6 {[%clk 0:15:10]} 11. Re1 {[%clk 0:12:52]}  Re8 {[%clk 0:15:12]} 12. d4 {[%clk 0:12:51]}  Bb6 {[%clk 0:15:04]} 13. dxe5 {[%clk 0:10:28]}  Nxe5 {[%clk 0:13:01]} 14. Nxe5 {[%clk 0:10:28]}  dxe5 {[%clk 0:10:37]} 15. Be3 {[%clk 0:09:49]}  Bxe3 {[%clk 0:09:57]} 16. Nxe3 {[%clk 0:09:03]}  Be6 {[%clk 0:09:25]} 17. Qf3 {[%clk 0:08:02]}  Bxc4 {[%clk 0:09:57]} 18. Nxc4 {[%clk 0:09:03]}  Qd7 {[%clk 0:09:16]} 19. Qf5 {[%clk 0:06:36]}  Qxf5 {[%clk 0:08:24]} 20. exf5 {[%clk 0:06:43]}  e4 {[%clk 0:08:28]} 21. Rad1 {[%clk 0:06:14]}  b6 {[%clk 0:07:19]} 22. Rd4 {[%clk 0:05:50]}  Rad8 {[%clk 0:07:23]} 23. Red1 {[%clk 0:05:58]}  Rxd4 {[%clk 0:07:31]} 24. Rxd4 {[%clk 0:06:06]}  h5 {[%clk 0:07:31]} 25. Kf1 {[%clk 0:04:54]}  Rb8 {[%clk 0:07:00]} 26. Ne5 {[%clk 0:04:07]}  b5 {[%clk 0:07:29]} 27. axb5 {[%clk 0:04:54]}  Rxb5 {[%clk 0:06:35]} 28. Rd8+ {[%clk 0:03:48]}  Kh7 {[%clk 0:06:44]} 29. Nd7 {[%clk 0:03:56]}  Rxf5 {[%clk 0:06:20]} 30. Nxf6+ {[%clk 0:03:55]}  gxf6 {[%clk 0:05:22]} 31. Ke2 {[%clk 0:03:48]}  Rb5 {[%clk 0:06:44]} 32. Ke3 {[%clk 0:03:53]}  Rxb2 {[%clk 0:05:08]} 33. Rd5 {[%clk 0:03:55]}  Kg6 {[%clk 0:05:08]} 34. Rxa5 {[%clk 0:03:55]}  f5 {[%clk 0:03:58]} 35. h4 {[%clk 0:03:55]}  f4+ {[%clk 0:03:43]} 36. Kxe4 {[%clk 0:03:13]}  Rxf2 {[%clk 0:03:50]} 37. Rg5+ {[%clk 0:03:21]}  Kh6 {[%clk 0:03:43]} 38. Rf5 {[%clk 0:03:21]}  Kg6 {[%clk 0:03:57]} 39. Rg5+ {[%clk 0:02:03]}  Kh6 {[%clk 0:02:06]} 40. Rf5 {[%clk 0:02:14]}  Kg6 {[%clk 0:03:57]} 1/2-1/2


[Site "http://www.Chess.com"]

[Event "FIDE World Rapid Chess Championship 2021"]
[White "Dreev, Aleksey"]
[Black "Samunenkov, Ihor"]
[WhiteFideId "4100107"]
[BlackFideId "14187086"]
[WhiteElo "2621"]
[BlackElo "2259"]
[Result "1/2-1/2"]
[Round "02"]
[TimeControl "900+10"]
[Date "2021.12.26"]
[WhiteClock "0:00:59"]
[BlackClock "0:00:26"]

1. d4 {[%clk 0:15:19]}  d5 {[%clk 0:15:19]} 2. c4 {[%clk 0:15:26]}  e6 {[%clk 0:15:27]} 3. Nc3 {[%clk 0:15:32]}  a6 {[%clk 0:15:35]} 4. cxd5 {[%clk 0:15:25]}  exd5 {[%clk 0:15:44]} 5. Nf3 {[%clk 0:15:16]}  Nf6 {[%clk 0:15:48]} 6. Bg5 {[%clk 0:15:17]}  Be6 {[%clk 0:15:52]} 7. e3 {[%clk 0:15:25]}  Nbd7 {[%clk 0:15:58]} 8. Bd3 {[%clk 0:15:32]}  Bd6 {[%clk 0:16:06]} 9. O-O {[%clk 0:15:35]}  c6 {[%clk 0:16:02]} 10. Bf4 {[%clk 0:14:41]}  Qc7 {[%clk 0:16:10]} 11. Bxd6 {[%clk 0:13:43]}  Qxd6 {[%clk 0:16:18]} 12. h3 {[%clk 0:13:48]}  O-O {[%clk 0:15:13]} 13. Qc2 {[%clk 0:13:56]}  g6 {[%clk 0:15:16]} 14. Rab1 {[%clk 0:13:14]}  Qe7 {[%clk 0:13:06]} 15. Ng5 {[%clk 0:13:14]}  Ne8 {[%clk 0:11:53]} 16. Nxe6 {[%clk 0:11:36]}  Qxe6 {[%clk 0:11:59]} 17. b4 {[%clk 0:09:37]}  Nd6 {[%clk 0:11:48]} 18. a4 {[%clk 0:09:46]}  Nb6 {[%clk 0:09:39]} 19. b5 {[%clk 0:08:39]}  cxb5 {[%clk 0:08:35]} 20. axb5 {[%clk 0:08:47]}  a5 {[%clk 0:07:41]} 21. Na4 {[%clk 0:08:55]}  Nbc4 {[%clk 0:07:01]} 22. Qe2 {[%clk 0:05:55]}  b6 {[%clk 0:06:18]} 23. Rfc1 {[%clk 0:05:17]}  Rfc8 {[%clk 0:05:48]} 24. Qg4 {[%clk 0:04:08]}  Ra7 {[%clk 0:03:48]} 25. Qxe6 {[%clk 0:03:41]}  fxe6 {[%clk 0:03:56]} 26. f3 {[%clk 0:03:18]}  Rac7 {[%clk 0:03:05]} 27. e4 {[%clk 0:03:19]}  dxe4 {[%clk 0:01:36]} 28. fxe4 {[%clk 0:03:27]}  e5 {[%clk 0:01:45]} 29. dxe5 {[%clk 0:03:05]}  Nxe5 {[%clk 0:01:52]} 30. Rxc7 {[%clk 0:03:11]}  Rxc7 {[%clk 0:02:01]} 31. Be2 {[%clk 0:03:11]}  Nxe4 {[%clk 0:01:52]} 32. Nxb6 {[%clk 0:03:05]}  Nc3 {[%clk 0:01:52]} 33. Re1 {[%clk 0:03:05]}  Nxe2+ {[%clk 0:01:52]} 34. Rxe2 {[%clk 0:03:05]}  Rc5 {[%clk 0:01:52]} 35. Rb2 {[%clk 0:02:55]}  Nd3 {[%clk 0:00:47]} 36. Ra2 {[%clk 0:02:55]}  Rxb5 {[%clk 0:00:47]} 37. Nc4 {[%clk 0:02:55]}  Nb4 {[%clk 0:00:56]} 38. Rxa5 {[%clk 0:01:00]}  Rxa5 {[%clk 0:00:56]} 39. Nxa5 {[%clk 0:01:00]}  Nd5 {[%clk 0:00:56]} 40. Nc4 {[%clk 0:01:00]}  Kf7 {[%clk 0:00:56]} 41. Kf2 {[%clk 0:01:00]}  Kf6 {[%clk 0:00:56]} 42. Kf3 {[%clk 0:01:00]}  Ke6 {[%clk 0:00:56]} 43. Kg4 {[%clk 0:01:00]}  Kf6 {[%clk 0:00:56]} 44. Nd2 {[%clk 0:01:00]}  Ne3+ {[%clk 0:00:56]} 45. Kf3 {[%clk 0:01:00]}  Nf5 {[%clk 0:00:56]} 46. Kf4 {[%clk 0:01:00]}  g5+ {[%clk 0:00:56]} 47. Kg4 {[%clk 0:01:00]}  Kg6 {[%clk 0:00:56]} 48. Kf3 {[%clk 0:01:34]}  h5 {[%clk 0:00:37]} 49. Nc4 {[%clk 0:01:34]}  Kf6 {[%clk 0:00:37]} 50. Ke4 {[%clk 0:01:34]}  Ke6 {[%clk 0:00:37]} 51. Nd2 {[%clk 0:01:34]}  Nd6+ {[%clk 0:00:37]} 52. Kf3 {[%clk 0:01:34]}  Kf5 {[%clk 0:00:37]} 53. Nf1 {[%clk 0:01:34]}  g4+ {[%clk 0:00:37]} 54. hxg4+ {[%clk 0:00:59]}  hxg4+ {[%clk 0:00:26]} 55. Ke3 {[%clk 0:00:59]}  Ke5 {[%clk 0:00:26]} 56. g3 {[%clk 0:00:59]} 1/2-1/2


[Site "http://www.Chess.com"]

[Event "FIDE World Rapid Chess Championship 2021"]
[White "Muradli, Mahammad"]
[Black "Erdos, Viktor"]
[WhiteFideId "13409301"]
[BlackFideId "719978"]
[WhiteElo "2285"]
[BlackElo "2601"]
[Result "1-0"]
[Round "02"]
[TimeControl "900+10"]
[Date "2021.12.26"]
[WhiteClock "0:00:22"]
[BlackClock "0:00:33"]

1. c4 {[%clk 0:15:18]}  c5 {[%clk 0:15:07]} 2. Nf3 {[%clk 0:15:26]}  Nf6 {[%clk 0:15:15]} 3. Nc3 {[%clk 0:15:34]}  d5 {[%clk 0:15:24]} 4. cxd5 {[%clk 0:15:21]}  Nxd5 {[%clk 0:15:32]} 5. d4 {[%clk 0:15:29]}  Nxc3 {[%clk 0:15:34]} 6. bxc3 {[%clk 0:15:37]}  g6 {[%clk 0:15:42]} 7. e3 {[%clk 0:15:01]}  Bg7 {[%clk 0:15:47]} 8. Bb5+ {[%clk 0:14:26]}  Bd7 {[%clk 0:14:46]} 9. a4 {[%clk 0:13:45]}  Qa5 {[%clk 0:13:47]} 10. Qb3 {[%clk 0:10:56]}  cxd4 {[%clk 0:12:46]} 11. exd4 {[%clk 0:11:05]}  O-O {[%clk 0:12:12]} 12. Ba3 {[%clk 0:10:42]}  Rc8 {[%clk 0:10:29]} 13. Bb4 {[%clk 0:08:49]}  Qc7 {[%clk 0:10:18]} 14. O-O {[%clk 0:08:27]}  a5 {[%clk 0:09:52]} 15. Bxd7 {[%clk 0:08:09]}  Qxd7 {[%clk 0:07:32]} 16. Bc5 {[%clk 0:08:18]}  Na6 {[%clk 0:07:34]} 17. Bb6 {[%clk 0:08:27]}  Rc6 {[%clk 0:06:08]} 18. Rfe1 {[%clk 0:07:03]}  Nb4 {[%clk 0:02:35]} 19. Bc5 {[%clk 0:06:16]}  Nd5 {[%clk 0:02:44]} 20. c4 {[%clk 0:04:36]}  Nf4 {[%clk 0:02:44]} 21. Rab1 {[%clk 0:03:16]}  Nd3 {[%clk 0:00:29]} 22. Qxd3 {[%clk 0:01:59]}  Rxc5 {[%clk 0:00:38]} 23. Red1 {[%clk 0:02:09]}  Rc7 {[%clk 0:00:35]} 24. Rb5 {[%clk 0:02:16]}  Rac8 {[%clk 0:00:38]} 25. Rc1 {[%clk 0:02:05]}  e5 {[%clk 0:00:38]} 26. Nxe5 {[%clk 0:00:17]}  Bxe5 {[%clk 0:00:17]} 27. Rxe5 {[%clk 0:00:17]}  Qxa4 {[%clk 0:00:17]} 28. c5 {[%clk 0:00:17]}  Rd7 {[%clk 0:00:17]} 29. d5 {[%clk 0:00:12]}  Kg7 {[%clk 0:00:12]} 30. d6 {[%clk 0:00:17]}  b6 {[%clk 0:00:17]} 31. Qc3 {[%clk 0:00:17]}  f6 {[%clk 0:00:17]} 32. Re6 {[%clk 0:00:17]}  Rxc5 {[%clk 0:00:17]} 33. Qxf6+ {[%clk 0:00:17]}  Kh6 {[%clk 0:00:17]} 34. Qf8+ {[%clk 0:00:17]}  Kh5 {[%clk 0:00:17]} 35. Rxc5+ {[%clk 0:00:22]}  bxc5 {[%clk 0:00:33]} 36. Re5+ {[%clk 0:00:22]}  Kh4 {[%clk 0:00:33]} 37. Qh6+ {[%clk 0:00:22]} 1-0


[Site "http://www.Chess.com"]

[Event "FIDE World Rapid Chess Championship 2021"]
[White "Suleymanli, Aydin"]
[Black "Quparadze, Giga"]
[WhiteFideId "13413937"]
[BlackFideId "13602250"]
[WhiteElo "2202"]
[BlackElo "2583"]
[Result "0-1"]
[Round "02"]
[TimeControl "900+10"]
[Date "2021.12.26"]
[WhiteClock "0:00:33"]
[BlackClock "0:08:15"]

1. d4 {[%clk 0:14:47]}  Nf6 {[%clk 0:15:18]} 2. Bg5 {[%clk 0:14:56]}  d5 {[%clk 0:15:23]} 3. Nd2 {[%clk 0:15:05]}  Nbd7 {[%clk 0:15:26]} 4. e3 {[%clk 0:15:10]}  h6 {[%clk 0:15:32]} 5. Bh4 {[%clk 0:15:16]}  e5 {[%clk 0:15:36]} 6. c3 {[%clk 0:15:10]}  Bd6 {[%clk 0:15:41]} 7. dxe5 {[%clk 0:14:34]}  Nxe5 {[%clk 0:15:47]} 8. Ngf3 {[%clk 0:14:43]}  Ng6 {[%clk 0:15:55]} 9. Bg3 {[%clk 0:14:52]}  O-O {[%clk 0:16:02]} 10. Bd3 {[%clk 0:14:55]}  b6 {[%clk 0:15:58]} 11. Qc2 {[%clk 0:15:02]}  Bxg3 {[%clk 0:15:24]} 12. hxg3 {[%clk 0:15:10]}  Qe8 {[%clk 0:15:33]} 13. c4 {[%clk 0:14:20]}  c5 {[%clk 0:15:41]} 14. cxd5 {[%clk 0:14:19]}  Nxd5 {[%clk 0:15:48]} 15. a3 {[%clk 0:14:28]}  Bb7 {[%clk 0:15:34]} 16. Nc4 {[%clk 0:14:23]}  Rd8 {[%clk 0:15:40]} 17. O-O-O {[%clk 0:14:21]}  b5 {[%clk 0:15:40]} 18. Bxg6 {[%clk 0:13:06]}  bxc4 {[%clk 0:14:38]} 19. Bh7+ {[%clk 0:13:15]}  Kh8 {[%clk 0:14:47]} 20. Bf5 {[%clk 0:13:09]}  c3 {[%clk 0:14:45]} 21. e4 {[%clk 0:13:18]}  Nf6 {[%clk 0:13:56]} 22. Rxd8 {[%clk 0:13:06]}  Qxd8 {[%clk 0:14:02]} 23. Qxc3 {[%clk 0:12:56]}  Bxe4 {[%clk 0:13:59]} 24. Nh4 {[%clk 0:10:44]}  Qd5 {[%clk 0:13:59]} 25. Bxe4 {[%clk 0:08:43]}  Nxe4 {[%clk 0:13:31]} 26. Qc2 {[%clk 0:08:43]}  Rd8 {[%clk 0:13:07]} 27. Re1 {[%clk 0:08:27]}  Nd2 {[%clk 0:13:06]} 28. Nf5 {[%clk 0:06:57]}  Qa2 {[%clk 0:12:55]} 29. Nd4 {[%clk 0:05:44]}  cxd4 {[%clk 0:11:33]} 30. Kxd2 {[%clk 0:05:52]}  d3 {[%clk 0:11:37]} 31. Qc3 {[%clk 0:05:32]}  Rb8 {[%clk 0:11:38]} 32. Re5 {[%clk 0:00:33]}  Qb1 {[%clk 0:08:09]} 33. Rc5 {[%clk 0:00:12]}  Rxb2+ {[%clk 0:11:38]} 34. Ke3 {[%clk 0:00:33]}  Re2+ {[%clk 0:11:38]} 35. Kf3 {[%clk 0:00:19]}  d2 {[%clk 0:08:15]} 36. Rc6 {[%clk 0:00:33]} 0-1


[Site "http://www.Chess.com"]

[Event "FIDE World Rapid Chess Championship 2021"]
[White "Gareyev, Timur"]
[Black "Gukesh, D"]
[WhiteFideId "14200937"]
[BlackFideId "46616543"]
[WhiteElo "2578"]
[BlackElo "2050"]
[Result "1-0"]
[Round "02"]
[TimeControl "900+10"]
[Date "2021.12.26"]
[WhiteClock "0:01:13"]
[BlackClock "0:00:17"]

1. d4 {[%clk 0:15:16]}  Nf6 {[%clk 0:15:17]} 2. c4 {[%clk 0:15:24]}  e6 {[%clk 0:15:14]} 3. Nc3 {[%clk 0:15:21]}  Bb4 {[%clk 0:14:48]} 4. Qc2 {[%clk 0:15:27]}  O-O {[%clk 0:14:46]} 5. a3 {[%clk 0:15:27]}  Bxc3+ {[%clk 0:14:52]} 6. Qxc3 {[%clk 0:15:35]}  d5 {[%clk 0:14:42]} 7. e3 {[%clk 0:15:39]}  b6 {[%clk 0:12:41]} 8. Nf3 {[%clk 0:15:42]}  Ba6 {[%clk 0:12:33]} 9. b3 {[%clk 0:14:25]}  Nbd7 {[%clk 0:12:34]} 10. Be2 {[%clk 0:14:34]}  c5 {[%clk 0:12:29]} 11. O-O {[%clk 0:14:08]}  Rc8 {[%clk 0:12:37]} 12. a4 {[%clk 0:14:10]}  cxd4 {[%clk 0:11:26]} 13. Nxd4 {[%clk 0:14:34]}  dxc4 {[%clk 0:10:11]} 14. bxc4 {[%clk 0:14:00]}  Ne4 {[%clk 0:10:02]} 15. Qb4 {[%clk 0:13:16]}  Ne5 {[%clk 0:09:30]} 16. Ba3 {[%clk 0:13:23]}  Nc5 {[%clk 0:07:53]} 17. Rad1 {[%clk 0:13:22]}  Qe7 {[%clk 0:07:47]} 18. Nb5 {[%clk 0:12:14]}  Rfd8 {[%clk 0:07:35]} 19. Qb1 {[%clk 0:10:23]}  h6 {[%clk 0:06:32]} 20. Rd4 {[%clk 0:10:07]}  Nc6 {[%clk 0:06:37]} 21. Rfd1 {[%clk 0:09:54]}  Qg5 {[%clk 0:06:00]} 22. h4 {[%clk 0:09:47]}  Qf6 {[%clk 0:05:11]} 23. Rxd8+ {[%clk 0:07:40]}  Rxd8 {[%clk 0:05:18]} 24. Rxd8+ {[%clk 0:07:48]}  Qxd8 {[%clk 0:05:26]} 25. Bxc5 {[%clk 0:07:48]}  bxc5 {[%clk 0:05:33]} 26. Qe4 {[%clk 0:07:56]}  Qd7 {[%clk 0:03:46]} 27. Bf3 {[%clk 0:07:36]}  Na5 {[%clk 0:03:54]} 28. Qf4 {[%clk 0:06:13]}  Qe7 {[%clk 0:03:32]} 29. h5 {[%clk 0:04:35]}  e5 {[%clk 0:03:32]} 30. Qf5 {[%clk 0:06:13]}  Nxc4 {[%clk 0:02:33]} 31. Be4 {[%clk 0:04:19]}  Kf8 {[%clk 0:02:33]} 32. Qh7 {[%clk 0:04:19]}  Qd7 {[%clk 0:02:33]} 33. Bf3 {[%clk 0:04:19]}  Bxb5 {[%clk 0:02:33]} 34. axb5 {[%clk 0:03:36]}  Nd2 {[%clk 0:01:15]} 35. Bc6 {[%clk 0:03:23]}  Qd6 {[%clk 0:01:12]} 36. Qh8+ {[%clk 0:03:23]}  Ke7 {[%clk 0:01:12]} 37. Qa8 {[%clk 0:03:23]}  Qc7 {[%clk 0:01:12]} 38. Qe8+ {[%clk 0:03:23]}  Kf6 {[%clk 0:01:12]} 39. Qf8 {[%clk 0:03:23]}  Qe7 {[%clk 0:01:12]} 40. Qc8 {[%clk 0:03:23]}  Qd6 {[%clk 0:01:03]} 41. e4 {[%clk 0:00:26]}  Nb3 {[%clk 0:01:03]} 42. Qf5+ {[%clk 0:00:26]}  Ke7 {[%clk 0:01:03]} 43. Bd5 {[%clk 0:00:26]}  Nd4 {[%clk 0:01:03]} 44. Qxf7+ {[%clk 0:00:26]}  Kd8 {[%clk 0:01:03]} 45. Qxa7 {[%clk 0:00:26]}  Nxb5 {[%clk 0:01:03]} 46. Qxg7 {[%clk 0:00:26]}  Nc3 {[%clk 0:01:03]} 47. Qg8+ {[%clk 0:00:26]}  Kc7 {[%clk 0:01:03]} 48. Qg7+ {[%clk 0:00:26]}  Kd8 {[%clk 0:01:03]} 49. Bb3 {[%clk 0:00:26]}  Ne2+ {[%clk 0:01:03]} 50. Kh2 {[%clk 0:01:13]}  Nf4 {[%clk 0:00:17]} 51. g3 {[%clk 0:01:13]}  Qd4 {[%clk 0:00:17]} 52. gxf4 {[%clk 0:01:13]}  Qxf2+ {[%clk 0:00:17]} 53. Kh3 {[%clk 0:01:13]}  Qf3+ {[%clk 0:00:17]} 54. Qg3 {[%clk 0:01:13]}  Qh1+ {[%clk 0:00:22]} 55. Kg4 {[%clk 0:00:32]}  Qxe4 {[%clk 0:00:30]} 56. Qf3 {[%clk 0:01:13]}  Qb4 {[%clk 0:00:17]} 57. Qd5+ {[%clk 0:01:13]}  Kc8 {[%clk 0:00:17]} 58. Qe6+ {[%clk 0:01:13]}  Kd8 {[%clk 0:00:17]} 59. Qf6+ {[%clk 0:01:13]} 1-0


[Site "http://www.Chess.com"]

[Event "FIDE World Rapid Chess Championship 2021"]
[White "Aronian, Levon"]
[Black "Aditya, Mittal"]
[WhiteFideId "13300474"]
[BlackFideId "35042025"]
[WhiteElo "2728"]
[BlackElo "1488"]
[Result "1-0"]
[Round "02"]
[TimeControl "900+10"]
[Date "2021.12.26"]
[WhiteClock "0:06:19"]
[BlackClock "0:03:00"]

1. d4 {[%clk 0:15:18]}  Nf6 {[%clk 0:15:19]} 2. Bf4 {[%clk 0:15:25]}  d5 {[%clk 0:15:27]} 3. e3 {[%clk 0:15:33]}  c5 {[%clk 0:15:35]} 4. Nf3 {[%clk 0:15:40]}  Nc6 {[%clk 0:15:44]} 5. Nbd2 {[%clk 0:15:48]}  e6 {[%clk 0:15:39]} 6. c3 {[%clk 0:15:55]}  cxd4 {[%clk 0:15:48]} 7. exd4 {[%clk 0:16:02]}  Nh5 {[%clk 0:15:56]} 8. Be3 {[%clk 0:16:02]}  Bd6 {[%clk 0:16:05]} 9. Ne5 {[%clk 0:16:05]}  Nf6 {[%clk 0:16:13]} 10. f4 {[%clk 0:15:55]}  Qb6 {[%clk 0:14:30]} 11. Qb3 {[%clk 0:15:54]}  Ng8 {[%clk 0:14:26]} 12. Bd3 {[%clk 0:13:33]}  Nge7 {[%clk 0:14:21]} 13. g3 {[%clk 0:13:31]}  f6 {[%clk 0:14:13]} 14. Nef3 {[%clk 0:13:39]}  Bd7 {[%clk 0:13:49]} 15. O-O {[%clk 0:13:31]}  O-O {[%clk 0:12:50]} 16. Qc2 {[%clk 0:13:31]}  Nf5 {[%clk 0:13:49]} 17. Rae1 {[%clk 0:12:16]}  Rac8 {[%clk 0:12:11]} 18. Qb1 {[%clk 0:12:23]}  g6 {[%clk 0:11:00]} 19. Bf2 {[%clk 0:12:31]}  Nd8 {[%clk 0:10:36]} 20. c4 {[%clk 0:11:05]}  Qc7 {[%clk 0:09:13]} 21. c5 {[%clk 0:10:58]}  Be7 {[%clk 0:09:20]} 22. b4 {[%clk 0:10:58]}  Nf7 {[%clk 0:09:15]} 23. b5 {[%clk 0:10:28]}  Qb8 {[%clk 0:07:38]} 24. g4 {[%clk 0:09:17]}  Ng7 {[%clk 0:06:05]} 25. f5 {[%clk 0:08:27]}  gxf5 {[%clk 0:05:48]} 26. Bg3 {[%clk 0:06:55]}  e5 {[%clk 0:04:52]} 27. Nh4 {[%clk 0:07:01]}  Nh6 {[%clk 0:04:26]} 28. g5 {[%clk 0:07:09]}  Nf7 {[%clk 0:03:48]} 29. Ndf3 {[%clk 0:07:09]}  Be6 {[%clk 0:03:00]} 30. Nxf5 {[%clk 0:06:19]}  Bxf5 {[%clk 0:03:00]} 31. Bxf5 {[%clk 0:06:19]}  Nxf5 {[%clk 0:03:00]} 32. Qxf5 {[%clk 0:06:19]}  fxg5 {[%clk 0:03:00]} 33. Nxe5 {[%clk 0:06:19]}  Nxe5 {[%clk 0:03:00]} 34. Qe6+ {[%clk 0:06:19]} 1-0


[Site "http://www.Chess.com"]

[Event "FIDE World Rapid Chess Championship 2021"]
[White "Pichot, Alan"]
[Black "Vachier-Lagrave, Maxime"]
[WhiteFideId "110973"]
[BlackFideId "623539"]
[WhiteElo "2523"]
[BlackElo "2773"]
[Result "1/2-1/2"]
[Round "02"]
[TimeControl "900+10"]
[Date "2021.12.26"]
[WhiteClock "0:02:15"]
[BlackClock "0:02:04"]

1. e4 {[%clk 0:15:18]}  e6 {[%clk 0:15:19]} 2. d4 {[%clk 0:15:21]}  d5 {[%clk 0:15:27]} 3. Nc3 {[%clk 0:15:28]}  Nf6 {[%clk 0:15:36]} 4. e5 {[%clk 0:15:28]}  Nfd7 {[%clk 0:15:44]} 5. f4 {[%clk 0:14:52]}  c5 {[%clk 0:15:51]} 6. Nf3 {[%clk 0:15:00]}  Nc6 {[%clk 0:16:00]} 7. Be3 {[%clk 0:15:09]}  a6 {[%clk 0:16:08]} 8. Qd2 {[%clk 0:14:33]}  b5 {[%clk 0:15:32]} 9. dxc5 {[%clk 0:14:21]}  Bxc5 {[%clk 0:15:32]} 10. Bd3 {[%clk 0:14:21]}  Qb6 {[%clk 0:15:32]} 11. Bf2 {[%clk 0:14:21]}  h6 {[%clk 0:15:32]} 12. O-O {[%clk 0:14:21]}  Bxf2+ {[%clk 0:15:32]} 13. Qxf2 {[%clk 0:14:21]}  Qxf2+ {[%clk 0:15:32]} 14. Kxf2 {[%clk 0:14:03]}  g5 {[%clk 0:13:48]} 15. g3 {[%clk 0:14:06]}  f6 {[%clk 0:12:46]} 16. exf6 {[%clk 0:13:25]}  Nxf6 {[%clk 0:12:53]} 17. Rae1 {[%clk 0:14:06]}  gxf4 {[%clk 0:11:52]} 18. gxf4 {[%clk 0:13:13]}  Kd8 {[%clk 0:09:22]} 19. Rg1 {[%clk 0:12:34]}  Ra7 {[%clk 0:09:14]} 20. Ne2 {[%clk 0:12:08]}  Rf7 {[%clk 0:05:46]} 21. Ned4 {[%clk 0:12:06]}  Nxd4 {[%clk 0:09:14]} 22. Nxd4 {[%clk 0:12:08]}  Nh5 {[%clk 0:05:53]} 23. Nxe6+ {[%clk 0:08:15]}  Bxe6 {[%clk 0:06:01]} 24. Rxe6 {[%clk 0:08:24]}  Rxf4+ {[%clk 0:05:43]} 25. Ke1 {[%clk 0:06:48]}  Ra4 {[%clk 0:05:12]} 26. b3 {[%clk 0:04:27]}  Rxa2 {[%clk 0:05:20]} 27. Rg4 {[%clk 0:04:35]}  Rf8 {[%clk 0:03:54]} 28. Rxh6 {[%clk 0:04:40]}  Nf4 {[%clk 0:03:54]} 29. Kd2 {[%clk 0:04:40]}  Rf7 {[%clk 0:02:04]} 30. Ke3 {[%clk 0:04:40]}  Nxd3 {[%clk 0:01:34]} 31. Kxd3 {[%clk 0:03:28]}  Ra1 {[%clk 0:01:43]} 32. Kc3 {[%clk 0:03:30]}  Ra2 {[%clk 0:02:04]} 33. Rd6+ {[%clk 0:03:30]}  Kc8 {[%clk 0:02:04]} 34. Rc6+ {[%clk 0:03:30]}  Kb7 {[%clk 0:02:04]} 35. Rc5 {[%clk 0:02:15]} 1/2-1/2


[Site "http://www.Chess.com"]